[Event "Polish University-ch Teams 2024"]
[Site "Lublin"]
[Date "2024.02.24"]
[Round "2.21"]
[White "Golenia, Wojciech"]
[Black "Rosicki, Marcin"]
[Result "1-0"]
[ECO "D46"]
[WhiteElo "2212"]
[BlackElo "2032"]
[Annotator "ChessBase"]
[PlyCount "51"]
[EventDate "2024.02.22"]
[EventType "team-tourn"]
[EventCountry "POL"]
[SourceTitle "playchess.com"]
[Source "ChessBase"]
[SourceQuality "1"]
[TimeControl "900+5"]

1. c4 {[%emt 0:00:02]} Nf6 {[%emt 0:00:08]} 2. Nc3 {[%emt 0:00:02]} c6 {[%emt 0:00:10]} 3. Nf3 {[%emt 0:00:23]} d5 {[%emt 0:00:15]} 4. e3 {[%emt 0:00:02]} e6 {[%emt 0:00:42]} 5. b3 {[%emt 0:00:10]} Nbd7 {[%emt 0:00:20]} 6. Bb2 {[%emt 0:00:19]} Bd6 {[%emt 0:00:24]} 7. d4 {[%emt 0:00:28]} O-O {[%emt 0:00:08]} 8. Bd3 {[%emt 0:00:03]} Re8 {[%emt 0:00:31]} 9. cxd5 {[%emt 0:01:15]} exd5 {[%emt 0:00:04]} 10. O-O {[%emt 0:00:50]} Ne4 {[%emt 0:01:13]} 11. Qc2 {[%emt 0:03:27]} Ndf6 {[%emt 0:00:02]} 12. Rae1 {[%emt 0:00:57]} Bb8 {[%emt 0:02:29]} 13. Ne5 {[%emt 0:01:41]} h6 {[%emt 0:03:04]} 14. f3 {[%emt 0:00:48]} Nxc3 {[%emt 0:00:20]} 15. Bxc3 {[%emt 0:00:24]} a5 {[%emt 0:01:03]} 16. g4 {[%emt 0:01:44]} Nd7 {[%emt 0:01:54]} 17. Bh7+ {[%emt 0:02:01]} Kf8 {[%emt 0:00:01]} 18. f4 {[%emt 0:00:01]} Nf6 {[%emt 0:02:15]} 19. g5 {[%emt 0:00:27]} Ne4 {[%emt 0:01:08]} 20. gxh6 {[%emt 0:01:17]} Qh4 {[%emt 0:00:25]} 21. Bxe4 {[%emt 0:00:13]} dxe4 {[%emt 0:00:04]} 22. hxg7+ {[%emt 0:00:01]} Kxg7 {[%emt 0:00:05]} 23. Qxe4 {[%emt 0:00:02]} Bxe5 {[%emt 0:00:04]} 24. dxe5 {[%emt 0:00:03]} Qg4+ {[%emt 0:00:04]} 25. Kh1 {[%emt 0:00:02]} Qf5 {[%emt 0:00:00]} 26. e6+ {[%emt 0:00:05]} 1-0

[Event "Polish University-ch Teams 2024"]
[Site "Lublin"]
[Date "2024.02.24"]
[Round "2.22"]
[White "Skalny, Rafal"]
[Black "Musial, Tomasz"]
[Result "1-0"]
[ECO "E21"]
[WhiteElo "1526"]
[BlackElo "2171"]
[Annotator "RC"]
[PlyCount "89"]
[EventDate "2024.02.22"]
[EventType "team-tourn"]
[EventCountry "POL"]
[SourceTitle "playchess.com"]
[Source "ChessBase"]
[SourceQuality "1"]
[TimeControl "900+5"]

1. d4 {[%emt 0:00:02]} e6 {[%emt 0:00:01]} 2. c4 {[%emt 0:00:02]} b6 {[%emt 0:00:01]} 3. Nc3 {[%emt 0:00:02]} Bb7 {[%emt 0:00:03]} 4. Nf3 {[%emt 0:00:05]} Bb4 {[%emt 0:00:04]} 5. Bd2 {[%emt 0:00:25]} Nf6 {[%emt 0:00:04]} 6. e3 {[%emt 0:00:12]} O-O {[%emt 0:00:07]} 7. a3 {[%emt 0:00:05]} Bxc3 {[%emt 0:00:03]} 8. Bxc3 {[%emt 0:00:04]} Ne4 {[%emt 0:00:03]} 9. Bd3 {[%emt 0:00:31]} Nxc3 {[%emt 0:00:07]} 10. bxc3 {[%emt 0:00:02]} d6 {[%emt 0:00:57]} 11. O-O {[%emt 0:00:12]} Nd7 {[%emt 0:00:03]} 12. Rb1 {[%emt 0:01:16]} e5 {[%emt 0:00:16]} 13. Nd2 {[%emt 0:00:50]} Qg5 {[%emt 0:01:11]} 14. Be4 {[%emt 0:00:24]} Bxe4 {[%emt 0:00:15]} 15. Nxe4 {[%emt 0:00:02]} Qg6 {[%emt 0:00:14]} 16. f3 {[%emt 0:00:47]} Nf6 {[%emt 0:01:13]} 17. Nxf6+ {[%emt 0:00:06]} Qxf6 {[%emt 0:00:01]} 18. Qd3 {[%emt 0:00:41]} Rfe8 {[%emt 0:00:18]} 19. a4 {[%emt 0:00:06]} Qe6 {[%emt 0:00:42]} 20. e4 {[%emt 0:00:59]} Qd7 {[%emt 0:00:25]} 21. a5 {[%emt 0:01:08]} bxa5 {[%emt 0:00:08]} 22. Rb5 {[%emt 0:00:18]} Qc6 {[%emt 0:01:48]} 23. Rxa5 {[%emt 0:00:38]} Qb6 {[%emt 0:01:28]} 24. Rfa1 {[%emt 0:00:15]} Reb8 {[%emt 0:00:48]} 25. Rb5 {[%emt 0:00:40]} Qc6 {[%emt 0:00:16]} 26. Rxb8+ {[%emt 0:00:29]} Rxb8 {[%emt 0:00:01]} 27. Rxa7 {[%emt 0:00:25]} Qb6 {[%emt 0:00:01]} 28. Ra2 {[%emt 0:00:56]} Qb3 {[%emt 0:00:22]} 29. Ra7 {[%emt 0:00:32]} exd4 {[%emt 0:00:24]} 30. Qxd4 {[%emt 0:00:19]} Qb1+ {[%emt 0:01:35]} 31. Kf2 {[%emt 0:00:02]} Qc2+ {[%emt 0:00:01]} 32. Kg3 {[%emt 0:00:14]} h5 {[%emt 0:00:42]} 33. Qd5 {[%emt 0:01:04]} h4+ {[%emt 0:01:46]} 34. Kh3 {[%emt 0:00:02]} Qxc3 {[%emt 0:00:33]} 35. Ra8 {[%emt 0:01:32]} Rxa8 {[%emt 0:00:17]} 36. Qxa8+ {[%emt 0:00:02]} Kh7 {[%emt 0:00:01]} 37. Qd5 {[%emt 0:00:01]} Qf6 {[%emt 0:00:16]} 38. Qf5+ {[%emt 0:00:49]} Qxf5+ {[%emt 0:00:16]} 39. exf5 {[%emt 0:00:01]} c6 {[%emt 0:01:09]} 40. Kxh4 {[%emt 0:00:19]} d5 {[%emt 0:00:03]} 41. cxd5 {[%emt 0:00:12]} cxd5 {[%emt 0:00:01]} 42. Kg4 {[%emt 0:00:09]} f6 {[%emt 0:00:19]} 43. Kf4 {[%emt 0:00:04]} Kh6 {[%emt 0:00:01]} 44. g4 {[%emt 0:00:34]} d4 {[%emt 0:00:13]} 45. h4 {[%emt 0:00:02]} 1-0

[Event "Polish University-ch Teams 2024"]
[Site "Lublin"]
[Date "2024.02.24"]
[Round "2.23"]
[White "Babiarz, Arkadiusz"]
[Black "Panko, Dominik"]
[Result "1-0"]
[ECO "C50"]
[WhiteElo "2159"]
[BlackElo "1217"]
[Annotator "RC"]
[PlyCount "85"]
[EventDate "2024.02.22"]
[EventType "team-tourn"]
[EventCountry "POL"]
[SourceTitle "playchess.com"]
[Source "ChessBase"]
[SourceQuality "1"]
[TimeControl "900+5"]

1. e4 {[%emt 0:00:02]} e5 {[%emt 0:00:02]} 2. Nf3 {[%emt 0:00:01]} Nc6 {[%emt 0:00:02]} 3. Bc4 {[%emt 0:00:02]} d6 {[%emt 0:00:04]} 4. d4 {[%emt 0:00:04]} exd4 {[%emt 0:00:31]} 5. Nxd4 {[%emt 0:00:03]} Ne5 {[%emt 0:01:20]} 6. Bb3 {[%emt 0:00:19]} c5 {[%emt 0:00:13]} 7. Nf3 {[%emt 0:00:35]} Nc6 {[%emt 0:00:34]} 8. Nc3 {[%emt 0:00:23]} Be7 {[%emt 0:00:11]} 9. Nd5 {[%emt 0:00:24]} Nf6 {[%emt 0:00:08]} 10. Nxe7 {[%emt 0:00:53]} Qxe7 {[%emt 0:00:03]} 11. O-O {[%emt 0:00:02]} O-O {[%emt 0:00:11]} 12. Re1 {[%emt 0:00:05]} Bg4 {[%emt 0:00:33]} 13. h3 {[%emt 0:00:24]} Bh5 {[%emt 0:00:31]} 14. Bf4 {[%emt 0:00:40]} Rad8 {[%emt 0:00:56]} 15. Bd5 {[%emt 0:03:30]} Nd4 {[%emt 0:00:57]} 16. Qd3 {[%emt 0:00:18]} Nxf3+ {[%emt 0:00:11]} 17. gxf3 {[%emt 0:00:02]} Bg6 {[%emt 0:00:08]} 18. Rad1 {[%emt 0:00:24]} Rd7 {[%emt 0:02:32]} 19. Bg3 {[%emt 0:01:06]} Nxd5 {[%emt 0:00:43]} 20. Qxd5 {[%emt 0:00:02]} Rfd8 {[%emt 0:00:02]} 21. c3 {[%emt 0:01:51]} Qe6 {[%emt 0:00:13]} 22. Kg2 {[%emt 0:00:35]} Qxd5 {[%emt 0:00:54]} 23. Rxd5 {[%emt 0:00:03]} Kf8 {[%emt 0:00:03]} 24. f4 {[%emt 0:00:23]} f6 {[%emt 0:00:12]} 25. Kf3 {[%emt 0:00:37]} Bf7 {[%emt 0:00:04]} 26. Rd2 {[%emt 0:00:06]} Bxa2 {[%emt 0:00:22]} 27. Ra1 {[%emt 0:00:02]} Bc4 {[%emt 0:00:18]} 28. Rxa7 {[%emt 0:00:29]} Ba6 {[%emt 0:00:13]} 29. e5 {[%emt 0:00:49]} Ke7 {[%emt 0:00:36]} 30. exf6+ {[%emt 0:00:36]} gxf6 {[%emt 0:00:04]} 31. f5 {[%emt 0:00:02]} d5 {[%emt 0:01:13]} 32. Rd1 {[%emt 0:01:30]} d4 {[%emt 0:00:28]} 33. cxd4 {[%emt 0:00:02]} cxd4 {[%emt 0:00:38]} 34. Ke4 {[%emt 0:00:12]} d3 {[%emt 0:00:06]} 35. Rd2 {[%emt 0:00:27]} Rc8 {[%emt 0:00:59]} 36. Ke3 {[%emt 0:00:07]} Kf7 {[%emt 0:00:40]} 37. b4 {[%emt 0:00:16]} Re7+ {[%emt 0:00:10]} 38. Kf3 {[%emt 0:00:36]} Rc2 {[%emt 0:00:01]} 39. Bf4 {[%emt 0:00:09]} Rxd2 {[%emt 0:00:47]} 40. Bxd2 {[%emt 0:00:00]} Re2 {[%emt 0:00:01]} 41. b5 {[%emt 0:00:01]} Rxd2 {[%emt 0:00:12]} 42. bxa6 {[%emt 0:00:01]} Rb2 {[%emt 0:00:29]} 43. Ke4 {[%emt 0:00:27]} 1-0

[Event "Polish University-ch Teams 2024"]
[Site "Lublin"]
[Date "2024.02.24"]
[Round "2.24"]
[White "Pawlak, Emilia"]
[Black "Furtak, Joanna"]
[Result "1-0"]
[ECO "A36"]
[WhiteElo "1531"]
[BlackElo "1883"]
[Annotator "NA"]
[PlyCount "69"]
[EventDate "2024.02.22"]
[EventType "team-tourn"]
[EventCountry "POL"]
[SourceTitle "playchess.com"]
[Source "ChessBase"]
[SourceQuality "1"]
[TimeControl "900+5"]

1. e4 {[%emt 0:00:03]} c5 {[%emt 0:00:01]} 2. c4 {[%emt 0:00:01]} Nc6 {[%emt 0:00:03]} 3. Nc3 {[%emt 0:00:03]} g6 {[%emt 0:00:08]} 4. g3 {[%emt 0:00:02]} Bg7 {[%emt 0:00:02]} 5. Bg2 {[%emt 0:00:02]} d6 {[%emt 0:00:06]} 6. d3 {[%emt 0:00:06]} a6 {[%emt 0:00:23]} 7. Nge2 {[%emt 0:00:14]} Rb8 {[%emt 0:00:20]} 8. a4 {[%emt 0:00:13]} Nd4 {[%emt 0:00:21]} 9. O-O {[%emt 0:00:12]} Nf6 {[%emt 0:00:28]} 10. h3 {[%emt 0:00:05]} O-O {[%emt 0:00:54]} 11. Kh2 {[%emt 0:00:02]} Bd7 {[%emt 0:00:33]} 12. Be3 {[%emt 0:00:09]} Ne8 {[%emt 0:00:21]} 13. f4 {[%emt 0:00:11]} b5 {[%emt 0:00:17]} 14. axb5 {[%emt 0:00:52]} axb5 {[%emt 0:00:02]} 15. Rb1 {[%emt 0:00:48]} b4 {[%emt 0:03:41]} 16. Na2 {[%emt 0:02:02]} Qa5 {[%emt 0:01:08]} 17. Nac1 {[%emt 0:00:41]} Nc7 {[%emt 0:00:56]} 18. g4 {[%emt 0:02:08]} f5 {[%emt 0:01:53]} 19. gxf5 {[%emt 0:01:11]} gxf5 {[%emt 0:00:03]} 20. Ng3 {[%emt 0:00:16]} e6 {[%emt 0:01:21]} 21. Nh5 {[%emt 0:00:25]} Rf7 {[%emt 0:00:28]} 22. Nxg7 {[%emt 0:00:22]} Rxg7 {[%emt 0:00:02]} 23. Ne2 {[%emt 0:00:30]} e5 {[%emt 0:02:16]} 24. Ng3 {[%emt 0:00:16]} Rf8 {[%emt 0:00:13]} 25. fxe5 {[%emt 0:00:18]} dxe5 {[%emt 0:00:17]} 26. Bh6 {[%emt 0:00:06]} f4 {[%emt 0:00:24]} 27. Nh5 {[%emt 0:00:58]} Rg6 {[%emt 0:00:19]} 28. Bxf8 {[%emt 0:00:30]} Kxf8 {[%emt 0:00:01]} 29. Nxf4 {[%emt 0:00:36]} exf4 {[%emt 0:00:14]} 30. Rxf4+ {[%emt 0:00:02]} Kg7 {[%emt 0:00:03]} 31. Qh5 {[%emt 0:00:28]} Qb6 {[%emt 0:00:07]} 32. Rbf1 {[%emt 0:00:37]} Qd6 {[%emt 0:00:03]} 33. Kh1 {[%emt 0:00:08]} Be6 {[%emt 0:00:08]} 34. e5 {[%emt 0:01:00]} Qe7 {[%emt 0:00:09]} 35. Be4 {[%emt 0:00:12]} 1-0

[Event "Polish University-ch Teams 2024"]
[Site "Lublin"]
[Date "2024.02.24"]
[Round "3.1"]
[White "Janik, Igor"]
[Black "Lukasiewicz, Krzysztof"]
[Result "1-0"]
[ECO "A00"]
[WhiteElo "2499"]
[BlackElo "2290"]
[Annotator "TA"]
[PlyCount "97"]
[EventDate "2024.02.22"]
[EventType "team-tourn"]
[EventCountry "POL"]
[SourceTitle "playchess.com"]
[Source "ChessBase"]
[SourceQuality "1"]
[TimeControl "900+5"]

{[%evp 9,97,0,24,22,27,35,69,46,40,36,41,37,52,20,49,-6,32,32,44,0,0,0,0,0,0,0,0,-41,-29,-28,-19,-29,-34,-35,-36,-29,-32,-36,-37,-47,-37,-43,-22,-46,0,-21,0,-23,-18,-29,-13,-33,35,38,36,45,240,231,246,252,375,349,337,283,283,274,270,272,350,330,348,352,1077,1199,1039,1005,1293,1295,1214,1252,1247,1254,1179,1155,1161,1008,5728,1026,29982,29982]} 1. a3 {[%emt 0:00:00]} d5 {[%emt 0:00:15]} 2. e3 {[%emt 0:00:06]} Nf6 {[%emt 0:00:16]} 3. Nf3 {[%emt 0:00:09]} Bf5 {[%emt 0:00:06]} 4. c4 {[%emt 0:00:16]} e6 {[%emt 0:01:08]} 5. Qb3 {[%emt 0:00:08]} Qc8 {[%emt 0:00:32]} 6. Nc3 {[%emt 0:00:11]} c6 {[%emt 0:00:03]} 7. Nh4 {[%emt 0:00:02]} Bg4 {[%emt 0:00:13][%cal Bf5g4,Bg4h5,Bh5g6][%mdl 32]} 8. h3 {[%emt 0:00:06] White is slightly better.} Bh5 {[%emt 0:00:01]} 9. g4 {[%emt 0:00:07]} Bg6 {[%emt 0:00:01]} 10. d4 {[%emt 0:00:01]} Nbd7 {[%emt 0:00:13]} 11. Bd2 {[%emt 0:00:06]} Be7 {[%emt 0:00:12]} 12. Rc1 {[%emt 0:00:11]} (12. Nxg6 $14 hxg6 13. cxd5 Nxd5 14. Bg2) 12... Qb8 {[%emt 0:00:01]} 13. Nxg6 {[%emt 0:00:32]} hxg6 {[%emt 0:00:01]} 14. Bg2 {[%emt 0:00:05][%cal Rc4d5]} Nb6 {[%emt 0:01:45]} 15. cxd5 {[%emt 0:00:02]} exd5 {[%emt 0:00:05]} 16. Ne2 {[%emt 0:00:03][%cal Bc3e2,Be2f4,Bf4d3,Bd3e5][%mdl 32]} O-O {[%emt 0:00:13]} 17. O-O {[%emt 0:00:12]} Re8 {[%emt 0:00:01]} 18. Bb4 {[%emt 0:00:06]} Bxb4 {[%emt 0:00:30]} 19. Qxb4 {[%emt 0:00:02]} Nc8 {[%emt 0:00:04]} 20. Nf4 {[%emt 0:00:13]} Nd6 {[%emt 0:00:02]} 21. Nd3 {[%emt 0:00:03]} Qd8 {[%emt 0:00:18]} 22. Ne5 {[%emt 0:00:12]} Qe7 {[%emt 0:00:09]} 23. Rc2 {[%emt 0:00:12]} Nd7 {[%emt 0:00:18]} 24. Nd3 {[%emt 0:00:11]} Rad8 {[%emt 0:01:27]} 25. Re2 {[%emt 0:00:07]} Nf6 {[%emt 0:00:29]} 26. Ne5 {[%emt 0:00:06]} Nd7 {[%emt 0:00:03]} (26... Nh7 $15) 27. f4 {[%emt 0:00:31]} Qe6 {[%emt 0:00:26]} 28. b3 {[%emt 0:03:49]} Nf6 {[%emt 0:00:15]} 29. a4 {[%emt 0:00:17]} Nfe4 {[%emt 0:00:17]} 30. Kh2 {[%emt 0:00:12] Inhibits Ng3.} Kh7 {[%emt 0:00:43]} ({Black should play} 30... Rb8 $15) 31. Bxe4 $14 {[%emt 0:00:12]} dxe4 {[%emt 0:00:06]} 32. Rg2 {[%emt 0:00:54]} f6 $2 {[%emt 0:00:18] [#] This move loses the game for Black.} ({Better is} 32... Rh8 $14) 33. Nxg6 $1 $18 {[%emt 0:00:10][%mdl 512]} Qd5 {[%emt 0:00:46]} (33... Nf7 34. Qxb7) 34. f5 {[%emt 0:00:03]} b6 {[%emt 0:00:09]} (34... Nf7 $142 35. Nf4 (35. Qxb7 Qd6+ 36. Nf4 Ng5 $18) 35... Qd7) 35. Nf4 {[%emt 0:00:06]} Qf7 {[%emt 0:00:05]} 36. Ne6 {[%emt 0:00:21]} Rxe6 {[%emt 0:00:22]} 37. fxe6 {[%emt 0:00:01]} Qxe6 {[%emt 0:00:01]} 38. g5 {[%emt 0:00:01][%cal Bg4g5,Bg5g6][%mdl 32] aiming for gxf6.} f5 {[%emt 0:00:01]} 39. g6+ {[%emt 0:00:04]} Kg8 {[%emt 0:00:04][%cal Bh7g8,Bg8f8,Bf8e7,Be7d8][%mdl 32]} 40. Qe1 {[%emt 0:00:07] Qh4 is the strong threat.} Qxb3 $2 {[%emt 0:00:23]} (40... Ne8 41. Qg3 Rd5) 41. Qh4 {[%emt 0:00:14]} Re8 {[%emt 0:00:01]} 42. Rg5 {[%emt 0:00:06] White wants to mate with Rgxf5.} Qe6 {[%emt 0:00:50]} 43. Qh7+ {[%emt 0:00:55]} Kf8 {[%emt 0:00:01]} 44. Qh8+ {[%emt 0:00:01]} Ke7 {[%emt 0:00:50]} 45. Qxg7+ {[%emt 0:00:02]} Kd8 {[%emt 0:00:02]} 46. Qxa7 {[%emt 0:00:13]} Nc8 {[%emt 0:00:04]} 47. Qb8 {[%emt 0:00:06]} Qa2+ {[%emt 0:00:10]} 48. Rg2 {[%emt 0:00:02]} (48. Kg3 $142 Qa3 49. Rgxf5 (49. Rfxf5 Kd7 $18)) 48... Qxa4 {[%emt 0:00:30]} 49. g7 {[%emt 0:00:03] Weighted Error Value: White=0.14 (very precise) /Black=0.45.  Loses game:     	---       	Black=1      Mistake:       	White=1     	Black=4      Inaccurate:     	White=3     	Black=3      OK:         	White=12    	Black=9      Best:        	White=2     	Black=1      Brilliant:      	White=1     	---} 1-0

[Event "Polish University-ch Teams 2024"]
[Site "Lublin"]
[Date "2024.02.24"]
[Round "3.2"]
[White "Fiedorek, Michal"]
[Black "Kowalski, Igor"]
[Result "0-1"]
[ECO "B06"]
[WhiteElo "2286"]
[BlackElo "2372"]
[Annotator "RC"]
[PlyCount "82"]
[EventDate "2024.02.22"]
[EventType "team-tourn"]
[EventCountry "POL"]
[SourceTitle "playchess.com"]
[Source "ChessBase"]
[SourceQuality "1"]
[TimeControl "900+5"]

1. e4 {[%emt 0:00:02]} g6 {[%emt 0:00:25]} 2. d4 {[%emt 0:00:17]} Bg7 {[%emt 0:00:01]} 3. Nc3 {[%emt 0:00:01]} d6 {[%emt 0:00:01]} 4. Bg5 {[%emt 0:00:37]} a6 {[%emt 0:00:04]} 5. Qd2 {[%emt 0:00:51]} Nd7 {[%emt 0:00:16]} 6. Nf3 {[%emt 0:00:42]} h6 {[%emt 0:00:07]} 7. Be3 {[%emt 0:00:14]} b5 {[%emt 0:00:08]} 8. Ne2 {[%emt 0:00:43]} Bb7 {[%emt 0:00:03]} 9. Ng3 {[%emt 0:00:02]} e6 {[%emt 0:00:07]} 10. Bd3 {[%emt 0:00:15]} Ngf6 {[%emt 0:00:20]} 11. c3 {[%emt 0:00:07]} Ng4 {[%emt 0:00:04]} 12. a4 {[%emt 0:00:40]} bxa4 {[%emt 0:01:32]} 13. Rxa4 {[%emt 0:00:15]} Nb6 {[%emt 0:00:41]} 14. Ra2 {[%emt 0:00:23]} O-O {[%emt 0:00:26]} 15. O-O {[%emt 0:00:05]} a5 {[%emt 0:00:08]} 16. Rfa1 {[%emt 0:01:23]} a4 {[%emt 0:00:03]} 17. h3 {[%emt 0:00:04]} Nxe3 {[%emt 0:00:02]} 18. Qxe3 {[%emt 0:00:02]} f5 {[%emt 0:00:48]} 19. Qd2 {[%emt 0:02:11]} f4 {[%emt 0:00:46]} 20. Ne2 {[%emt 0:00:08]} e5 {[%emt 0:00:10]} 21. Qc2 {[%emt 0:01:07]} Bc6 {[%emt 0:00:40]} 22. b3 {[%emt 0:01:03]} Kh8 {[%emt 0:00:40]} 23. bxa4 {[%emt 0:00:19]} Ra5 {[%emt 0:00:18]} 24. Bb5 {[%emt 0:00:29]} Bxb5 {[%emt 0:02:28]} 25. axb5 {[%emt 0:00:01]} Rxb5 {[%emt 0:00:01]} 26. Qd3 {[%emt 0:00:56]} Qd7 {[%emt 0:00:13]} 27. Ra7 {[%emt 0:01:22]} Qc6 {[%emt 0:00:06]} 28. Rxc7 {[%emt 0:00:27]} Qxc7 {[%emt 0:00:03]} 29. Qxb5 {[%emt 0:00:02]} Rb8 {[%emt 0:00:28]} 30. Ra6 {[%emt 0:00:40]} g5 {[%emt 0:00:58]} 31. Qa5 {[%emt 0:01:00]} Rb7 {[%emt 0:00:20]} 32. Kh2 {[%emt 0:00:11]} Bf6 {[%emt 0:00:12]} 33. dxe5 {[%emt 0:00:19]} dxe5 {[%emt 0:00:09]} 34. Nc1 {[%emt 0:00:03]} h5 {[%emt 0:02:02]} 35. Nd3 {[%emt 0:00:01]} Nd7 {[%emt 0:00:00]} 36. Ra8+ {[%emt 0:00:27]} Kg7 {[%emt 0:03:15]} 37. Qd5 {[%emt 0:00:07]} Nb6 {[%emt 0:00:00]} 38. Qg8+ {[%emt 0:00:02]} Kh6 {[%emt 0:00:00]} 39. Rf8 {[%emt 0:00:20]} Qg7 {[%emt 0:00:00]} 40. Qxg7+ {[%emt 0:00:16]} Kxg7 {[%emt 0:00:00]} 41. Re8 {[%emt 0:00:03]} Kf7 {[%emt 0:00:00]} 0-1

[Event "Polish University-ch Teams 2024"]
[Site "Lublin"]
[Date "2024.02.24"]
[Round "3.3"]
[White "Molenda, Marcin"]
[Black "Pultorak, Jan"]
[Result "1-0"]
[ECO "E04"]
[WhiteElo "2377"]
[BlackElo "2303"]
[Annotator "RC"]
[PlyCount "89"]
[EventDate "2024.02.22"]
[EventType "team-tourn"]
[EventCountry "POL"]
[SourceTitle "playchess.com"]
[Source "ChessBase"]
[SourceQuality "1"]
[TimeControl "900+5"]

1. d4 {[%emt 0:00:01]} d5 {[%emt 0:00:01]} 2. c4 {[%emt 0:00:01]} e6 {[%emt 0:00:02]} 3. Nf3 {[%emt 0:00:01]} Nf6 {[%emt 0:00:02]} 4. g3 {[%emt 0:00:01]} a6 {[%emt 0:00:13]} 5. Bg2 {[%emt 0:00:14]} dxc4 {[%emt 0:00:12]} 6. O-O {[%emt 0:00:14]} Be7 {[%emt 0:00:04]} 7. Ne5 {[%emt 0:00:22]} O-O {[%emt 0:01:01]} 8. Nc3 {[%emt 0:00:30]} c5 {[%emt 0:00:20]} 9. dxc5 {[%emt 0:00:14]} Bxc5 {[%emt 0:00:07]} 10. Nxc4 {[%emt 0:00:17]} Nc6 {[%emt 0:00:02]} 11. Bf4 {[%emt 0:00:22]} Qe7 {[%emt 0:00:45]} 12. Bd6 {[%emt 0:01:03]} Bxd6 {[%emt 0:00:29]} 13. Qxd6 {[%emt 0:00:02]} Qxd6 {[%emt 0:02:07]} 14. Nxd6 {[%emt 0:00:01]} Rd8 {[%emt 0:00:03]} 15. Rfd1 {[%emt 0:00:29]} Kf8 {[%emt 0:00:22]} 16. Rd2 {[%emt 0:03:51]} Rb8 {[%emt 0:03:19]} 17. Rad1 {[%emt 0:00:30]} Bd7 {[%emt 0:01:22]} 18. a3 {[%emt 0:00:15]} Ke7 {[%emt 0:00:22]} 19. b4 {[%emt 0:00:07]} Ne8 {[%emt 0:02:04]} 20. Nxb7 {[%emt 0:00:56]} Rxb7 {[%emt 0:00:28]} 21. Bxc6 {[%emt 0:00:02]} Rc7 {[%emt 0:00:00]} 22. Rxd7+ {[%emt 0:00:11]} Rdxd7 {[%emt 0:00:02]} 23. Rxd7+ {[%emt 0:00:02]} Rxd7 {[%emt 0:00:01]} 24. Bxd7 {[%emt 0:00:01]} Kxd7 {[%emt 0:00:01]} 25. Kf1 {[%emt 0:01:07]} Nd6 {[%emt 0:00:07]} 26. Ke1 {[%emt 0:00:33]} Kc6 {[%emt 0:00:01]} 27. a4 {[%emt 0:00:13]} Nb7 {[%emt 0:00:46]} 28. Kd2 {[%emt 0:00:11]} a5 {[%emt 0:00:45]} 29. bxa5 {[%emt 0:00:06]} Nxa5 {[%emt 0:00:02]} 30. Ne4 {[%emt 0:00:41]} h6 {[%emt 0:00:18]} 31. Kc3 {[%emt 0:00:03]} f5 {[%emt 0:00:14]} 32. Nd2 {[%emt 0:00:02]} Kd5 {[%emt 0:00:24]} 33. Nb3 {[%emt 0:00:21]} Nc6 {[%emt 0:00:02]} 34. a5 {[%emt 0:00:10]} e5 {[%emt 0:00:06]} 35. a6 {[%emt 0:00:26]} g5 {[%emt 0:00:22]} 36. Na5 {[%emt 0:00:46]} Na7 {[%emt 0:00:01]} 37. Nc4 {[%emt 0:00:24]} h5 {[%emt 0:00:19]} 38. Kb4 {[%emt 0:00:41]} h4 {[%emt 0:00:11]} 39. gxh4 {[%emt 0:00:22]} gxh4 {[%emt 0:00:02]} 40. Na3 {[%emt 0:00:07]} f4 {[%emt 0:00:27]} 41. Nb5 {[%emt 0:00:05]} Nc8 {[%emt 0:00:47]} 42. a7 {[%emt 0:00:21]} Nxa7 {[%emt 0:00:02]} 43. Nxa7 {[%emt 0:00:01]} Ke4 {[%emt 0:00:08]} 44. Kc3 {[%emt 0:00:11]} Kf5 {[%emt 0:00:01]} 45. h3 {[%emt 0:00:02]} 1-0

[Event "Polish University-ch Teams 2024"]
[Site "Lublin"]
[Date "2024.02.24"]
[Round "3.5"]
[White "Antolak, Julia"]
[Black "Adamczewski, Jedrzej"]
[Result "1-0"]
[ECO "E73"]
[WhiteElo "2309"]
[BlackElo "1917"]
[Annotator "TA"]
[PlyCount "65"]
[EventDate "2024.02.22"]
[EventType "team-tourn"]
[EventCountry "POL"]
[SourceTitle "playchess.com"]
[Source "ChessBase"]
[SourceQuality "1"]
[TimeControl "900+5"]

{[%evp 11,65,45,46,30,49,58,62,50,50,44,69,60,96,102,106,90,153,122,128,127,288,56,53,45,338,357,360,370,361,365,374,302,344,330,385,392,475,344,333,342,354,330,373,298,399,398,421,399,415,386,1026,984,5351,29957,29996,29997]} 1. d4 {[%emt 0:00:03]} Nf6 {[%emt 0:00:04]} 2. c4 {[%emt 0:00:01]} g6 {[%emt 0:00:08]} 3. Nc3 {[%emt 0:00:02]} Bg7 {[%emt 0:00:01]} 4. e4 {[%emt 0:00:02]} d6 {[%emt 0:00:01]} 5. Be2 {[%emt 0:00:02]} O-O {[%emt 0:00:14]} 6. Be3 {[%emt 0:00:03]} c6 {[%emt 0:00:24]} 7. h4 {[%emt 0:00:41]} e5 {[%emt 0:00:15]} 8. d5 {[%emt 0:00:06]} Qa5 {[%emt 0:00:38]} 9. Qd2 {[%emt 0:00:07] White is slightly better.} cxd5 {[%emt 0:00:11]} 10. cxd5 {[%emt 0:00:02]} h5 {[%emt 0:00:57]} 11. Nh3 {[%emt 0:00:43]} Nbd7 {[%emt 0:00:48]} 12. Ng5 {[%emt 0:00:19]} Nc5 {[%emt 0:00:24]} 13. Rb1 {[%emt 0:01:08]} Qb4 {[%emt 0:02:09]} (13... Qd8 $142) 14. a3 {[%emt 0:01:41]} Qb3 {[%emt 0:00:01]} 15. O-O {[%emt 0:01:22]} a5 $2 {[%emt 0:01:31]} (15... Ng4 $16 {might work better.}) 16. f4 $2 {[%emt 0:01:36]} (16. Rfc1 $18) 16... exf4 $14 {[%emt 0:02:09]} 17. Rxf4 {[%emt 0:00:22]} Bg4 $2 {[%emt 0:00:38][%mdl 8192] [#] Black is now going downhill.} ({Better is} 17... Ng4 $14 18. Bd4 Ne5) 18. e5 $1 $18 {[%emt 0:01:02][%mdl 512]} dxe5 {[%emt 0:01:53]} 19. Rxf6 {[%emt 0:00:05]} Bxf6 {[%emt 0:00:16]} 20. Bxc5 {[%emt 0:00:38]} Rfc8 {[%emt 0:00:09] Strongly threatening ...Bxg5.} 21. Bxg4 {[%emt 0:00:27]} Rxc5 {[%emt 0:00:03]} 22. Nge4 {[%emt 0:00:20][%csl LRc5,LRf6] Excellent horsemanship.} Be7 {[%emt 0:00:37]} 23. Bd1 {[%emt 0:00:40]} ({Inferior is} 23. Nxc5 Bxc5+ 24. Kh1 hxg4 $15) 23... Qc4 {[%emt 0:00:20]} 24. Be2 {[%emt 0:00:34]} Qd4+ {[%emt 0:00:32] Black is weak on the light squares} 25. Qxd4 {[%emt 0:00:04]} exd4 {[%emt 0:00:02]} 26. Nxc5 {[%emt 0:00:03]} dxc3 {[%emt 0:00:56]} 27. Ne4 {[%emt 0:00:05]} cxb2 {[%emt 0:00:27]} 28. Rxb2 {[%emt 0:00:01]} Bxa3 {[%emt 0:00:01]} 29. Rxb7 {[%emt 0:00:02]} Rd8 {[%emt 0:00:01]} 30. Bc4 {[%emt 0:00:40][%cal Od5d6] [#] d6! would now be deadly.} Bc1 $2 {[%emt 0:00:18]} (30... Rc8) 31. d6 {[%emt 0:00:17]} Kh8 {[%emt 0:01:04]} 32. Rxf7 {[%emt 0:00:14]} a4 {[%emt 0:00:01]} 33. Nf6 {[%emt 0:00:06] Weighted Error Value: White=0.32/Black=0.48.  Loses game:     	---       	Black=2      Missed win:     	White=1     	---        Mistake:       	---       	Black=2      Inaccurate:     	---       	Black=3      OK:         	White=10    	Black=4      Best:        	White=3     	Black=1} 1-0